bitfinex/quotes_BTCUSD_20241022
["timestamp","ask_amount","ask_price","bid_price","bid_amount"]
[1729586696703,0.23286184,67174.0,67173.0,0.002825]
[1729586696910,0.23263915,67174.0,67173.0,0.002825]
[1729586697342,0.23263915,67174.0,67173.0,0.000825]
[1729586697554,0.23263915,67174.0,67173.0,0.001825]
[1729586700518,0.00247215,67174.0,67173.0,0.001825]
[1729586700762,0.15133915,67174.0,67173.0,0.001825]
[1729586700973,0.15133915,67174.0,67173.0,0.00986889]
[1729586700974,0.15633915,67174.0,67173.0,0.00986889]
[1729586701190,0.15633915,67174.0,67173.0,0.001825]
[1729586701411,0.15133915,67174.0,67173.0,0.001825]
[1729586702527,0.00247215,67174.0,67173.0,0.001825]
[1729586703163,0.00247215,67174.0,67173.0,0.00988417]
[1729586703388,0.00247215,67174.0,67173.0,0.001825]
[1729586703620,0.00247215,67174.0,67173.0,0.00988417]
[1729586703847,0.00247215,67174.0,67173.0,0.31552897]
[1729586704288,0.00247215,67174.0,67173.0,0.42358814]
[1729586704731,0.00247215,67174.0,67173.0,0.42258814]
[1729586704952,0.00147215,67174.0,67173.0,0.42258814]
[1729586705398,0.00147215,67174.0,67173.0,0.40671232]
[1729586705639,0.00147215,67174.0,67173.0,0.10888417]
[1729586706118,0.00147215,67174.0,67173.0,0.25775317]
[1729586706799,0.00347215,67174.0,67173.0,0.25775317]
[1729586707015,0.00147215,67174.0,67173.0,0.25775317]
[1729586707485,0.00547215,67174.0,67173.0,0.25975317]
[1729586707727,0.00547215,67174.0,67173.0,0.60426415]
[1729586707938,0.00547215,67174.0,67173.0,0.77288693]
[1729586708165,0.00747215,67174.0,67173.0,0.77288693]
[1729586708810,0.00347215,67174.0,67173.0,0.77288693]
[1729586710138,0.00247215,67174.0,67173.0,0.77288693]
[1729586710355,0.00147215,67174.0,67173.0,0.77388693]
[1729586710569,0.00147215,67174.0,67173.0,0.77588693]
[1729586710800,0.00147215,67174.0,67173.0,0.58331232]
[1729586711022,0.00147215,67174.0,67173.0,0.50721232]
[1729586711271,0.00147215,67174.0,67173.0,0.26284332]
[1729586711493,0.00147215,67174.0,67173.0,0.41171232]
[1729586711705,0.00147215,67174.0,67173.0,0.40871232]
[1729586711922,0.00147215,67174.0,67173.0,0.40671232]
[1729586712138,0.00247215,67174.0,67173.0,0.40671232]
[1729586713321,0.00147215,67174.0,67173.0,0.40671232]
[1729586714008,0.00347215,67174.0,67173.0,0.40671232]
[1729586715353,0.00347215,67174.0,67173.0,0.10888417]
[1729586716921,0.00347215,67174.0,67173.0,0.100825]
[1729586717162,0.22873915,67174.0,67173.0,0.10885739]
[1729586717379,0.22873915,67174.0,67173.0,0.100825]
[1729586717876,0.00347215,67174.0,67173.0,0.100825]
[1729586718108,0.15233915,67174.0,67173.0,0.100825]
[1729586718341,0.15233915,67174.0,67173.0,0.10885739]
[1729586719556,0.00347215,67174.0,67173.0,0.40668554]
[1729586720762,0.00147215,67174.0,67173.0,0.40668554]
[1729586721005,0.00347215,67174.0,67173.0,0.40668554]
[1729586721454,0.00247215,67174.0,67173.0,0.40668554]
[1729586722148,0.00247215,67174.0,67173.0,0.25772639]
[1729586722620,0.00147215,67174.0,67173.0,0.25772639]
[1729586722846,0.00147215,67174.0,67173.0,0.25972639]
[1729586723070,0.00247215,67174.0,67173.0,0.25972639]
[1729586723293,0.00247215,67174.0,67173.0,0.25772639]
[1729586723521,0.00147215,67174.0,67173.0,0.25772639]
[1729586723746,0.00647215,67174.0,67173.0,0.25772639]
[1729586724188,0.00647215,67174.0,67173.0,0.10885739]
[1729586724189,0.00147215,67174.0,67173.0,0.10885739]
[1729586724426,0.00447215,67174.0,67173.0,0.10885739]
[1729586724652,0.00547215,67174.0,67173.0,0.25772639]
[1729586725095,0.00547215,67174.0,67173.0,0.10885739]
[1729586725320,0.15433915,67174.0,67173.0,0.10885739]
[1729586725555,0.15433915,67174.0,67173.0,0.00885739]
[1729586726006,0.00547215,67174.0,67173.0,0.000825]
[1729586726207,0.15433915,67174.0,67173.0,0.00887303]
[1729586726425,0.15433915,67174.0,67173.0,0.000825]
[1729586726722,0.15433915,67174.0,67173.0,0.00887303]
[1729586726934,0.005,67157.0,67156.0,0.22265268]
[1729586727160,0.29092819,67157.0,67156.0,0.22265268]
[1729586727380,0.29092819,67157.0,67156.0,0.23077446]
[1729586727627,0.297799,67160.0,67151.0,0.148917]
[1729586727628,0.153907,67156.0,67151.0,0.148917]
[1729586728075,0.005,67156.0,67149.0,0.22347768]
[1729586728290,0.005,67156.0,67151.0,0.148917]
[1729586729475,0.003,67157.0,67156.0,0.321707]
[1729586729940,0.153894,67162.0,67156.0,0.321707]
[1729586730824,0.001,67157.0,67156.0,0.321707]
[1729586731244,0.148896,67161.0,67156.0,0.321707]
[1729586731452,0.148896,67161.0,67156.0,0.322707]
[1729586731696,0.011,67162.0,67156.0,0.1738]
[1729586731901,0.005,67167.0,67157.0,0.14895915]
[1729586732116,0.005,67167.0,67159.0,0.148899]
[1729586732117,0.148888,67165.0,67159.0,0.148899]
[1729586732369,0.148883,67167.0,67159.0,0.14895915]
[1729586732588,0.005,67162.0,67161.0,0.148895]
[1729586732807,0.005,67162.0,67161.0,0.29785415]
[1729586733044,0.297744,67172.0,67166.0,0.148883]
[1729586733045,0.148875,67171.0,67166.0,0.148883]
[1729586733258,0.005,67172.0,67167.0,0.148881]
[1729586733480,0.005,67172.0,67162.0,0.297787]
[1729586733706,0.005,67169.0,67165.0,0.148886]
[1729586733919,0.297739,67173.0,67165.0,0.14895915]
[1729586733920,0.005,67171.0,67165.0,0.14895915]
[1729586734379,0.148876,67170.0,67165.0,0.29784515]
[1729586734592,0.005,67169.0,67165.0,0.29784515]
[1729586734817,0.00124807,67174.0,67166.0,0.14895915]
[1729586735071,0.00124807,67174.0,67167.0,0.1697]
[1729586735072,0.167872,67172.0,67167.0,0.1697]
[1729586735277,0.14888,67168.0,67167.0,0.001]
[1729586735484,0.297747,67171.0,67167.0,0.001]
[1729586735706,0.14888,67168.0,67167.0,0.001]
[1729586735931,0.001,67169.0,67167.0,0.00910191]
[1729586736191,0.019,67172.0,67167.0,0.001]
[1729586736400,0.148881,67168.0,67162.0,0.376486]
[1729586736616,0.151881,67168.0,67163.0,0.29785015]
[1729586737079,0.148881,67168.0,67163.0,0.29785015]
[1729586737289,0.148881,67168.0,67167.0,0.002]
[1729586737708,0.148881,67168.0,67167.0,0.001]
[1729586737920,0.152881,67168.0,67167.0,0.001]
[1729586738138,0.235881,67168.0,67167.0,0.00910191]
[1729586738387,0.235881,67168.0,67167.0,0.001]
[1729586739028,0.004,67168.0,67163.0,0.0918]
[1729586739258,0.004,67168.0,67165.0,0.000825]
[1729586739259,0.148886,67166.0,67165.0,0.000825]
[1729586739678,0.148886,67166.0,67165.0,0.00893559]
[1729586739885,0.148886,67166.0,67165.0,0.000825]
[1729586740346,0.149886,67166.0,67165.0,0.00898288]
[1729586740557,0.149886,67166.0,67165.0,0.000825]
[1729586740784,0.151886,67166.0,67165.0,0.00898288]
[1729586741005,0.151886,67166.0,67165.0,0.000825]
[1729586741865,0.151886,67166.0,67165.0,0.00898288]
[1729586742079,0.151886,67166.0,67165.0,0.000825]
[1729586742317,0.151886,67166.0,67165.0,0.00898288]
[1729586742527,0.151886,67166.0,67165.0,0.000825]
[1729586743196,0.151886,67166.0,67165.0,0.00898288]
[1729586743404,0.151886,67166.0,67165.0,0.000825]
[1729586743838,0.151886,67166.0,67165.0,0.00898288]
[1729586744100,0.151886,67166.0,67165.0,0.000825]
[1729586744513,0.151886,67166.0,67165.0,0.00898288]
[1729586745199,0.003,67166.0,67165.0,0.00898288]
[1729586745431,0.151884,67166.0,67165.0,0.00898288]
[1729586745892,0.003,67166.0,67165.0,0.44385322]
[1729586746090,0.003,67166.0,67165.0,0.52425322]
[1729586746314,0.003,67166.0,67165.0,0.61895322]
[1729586746766,0.05,67179.0,67165.0,0.47006622]
[1729586746984,0.451583,67177.0,67171.0,0.148871]
[1729586747199,0.148865,67175.0,67172.0,0.14895915]
[1729586747413,0.148865,67175.0,67172.0,0.15709095]
[1729586747848,0.005,67177.0,67172.0,0.15709095]
[1729586748087,0.148862,67176.0,67172.0,0.30596195]
[1729586748305,0.148861,67177.0,67173.0,0.148869]
[1729586748534,0.29898207,67174.0,67173.0,0.00812746]
[1729586748759,0.44784907,67174.0,67173.0,0.00812746]
[1729586748971,0.44784907,67174.0,67165.0,0.004825]
[1729586748972,0.005,67173.0,67165.0,0.004825]
[1729586749194,0.148884,67166.0,67165.0,0.000825]
[1729586750568,0.151884,67166.0,67165.0,0.000825]
[1729586751004,0.003,67166.0,67165.0,0.29867115]
[1729586751222,0.001,67166.0,67165.0,0.37987115]
[1729586751464,0.002652,67166.0,67165.0,0.37987115]
[1729586751686,0.009652,67166.0,67165.0,0.50210768]
[1729586751910,0.008652,67166.0,67165.0,0.48077115]
[1729586752596,0.013652,67166.0,67165.0,0.48077115]
[1729586752834,0.013652,67166.0,67165.0,0.48892716]
[1729586753082,0.008652,67166.0,67165.0,0.48892716]
[1729586753311,0.008652,67166.0,67165.0,0.76888631]
[1729586753551,0.001652,67166.0,67165.0,0.76788631]
[1729586753784,0.001652,67166.0,67165.0,0.62707049]
[1729586754013,0.00124807,67174.0,67165.0,0.62707049]
[1729586754281,0.00124807,67174.0,67173.0,0.88977653]
[1729586754504,0.00124807,67174.0,67173.0,0.91042332]
[1729586754737,0.00124807,67174.0,67173.0,0.91851294]
[1729586755216,0.00124807,67174.0,67173.0,0.90736961]
[1729586755652,0.00124807,67174.0,67173.0,0.90936961]
[1729586755893,0.00124807,67174.0,67173.0,0.91850748]
[1729586756114,0.00324807,67174.0,67173.0,0.93250748]
[1729586757210,0.00224807,67174.0,67173.0,0.78397983]
[1729586757707,0.00324807,67174.0,67173.0,0.79597983]
[1729586760410,0.00324807,67174.0,67173.0,0.79097983]
[1729586760838,0.00324807,67174.0,67173.0,0.76297983]
[1729586761293,0.00324807,67174.0,67173.0,0.65797983]
[1729586761952,0.00224807,67174.0,67173.0,0.64397983]
[1729586762167,0.00224807,67174.0,67173.0,0.63197983]
[1729586762168,0.00124807,67174.0,67173.0,0.63197983]
[1729586762391,0.00324807,67174.0,67173.0,0.65697983]
[1729586762839,0.00224807,67174.0,67173.0,0.64297983]
[1729586763059,0.00224807,67174.0,67173.0,0.64797983]
[1729586763734,0.00124807,67174.0,67173.0,0.63697983]
[1729586763951,0.00124807,67174.0,67173.0,0.64097983]
[1729586767128,0.00124807,67174.0,67173.0,0.89312781]
[1729586767336,0.00124807,67174.0,67173.0,0.89512781]
[1729586767562,0.00124807,67174.0,67173.0,0.88398994]
[1729586768008,0.451423,67201.0,67200.0,0.09475193]
[1729586768441,0.148807,67201.0,67200.0,0.09475193]
[1729586768869,0.148807,67201.0,67200.0,0.10273792]
[1729586769440,0.162807,67201.0,67200.0,0.10373792]
[1729586769895,0.162807,67201.0,67200.0,0.10273792]
[1729586769896,0.153807,67201.0,67200.0,0.10273792]
[1729586770339,0.161807,67201.0,67200.0,0.10273792]
[1729586770571,0.29883119,67201.0,67200.0,0.10273792]
[1729586770810,0.29583119,67201.0,67200.0,0.10273792]
[1729586771023,0.30483119,67201.0,67200.0,0.09545663]
[1729586771933,0.148807,67201.0,67200.0,0.09445663]
[1729586772366,0.153807,67201.0,67200.0,0.09545663]
[1729586772598,0.153807,67201.0,67200.0,0.10373792]
[1729586772824,0.005,67201.0,67200.0,0.10373792]
[1729586773042,0.153807,67201.0,67200.0,0.09545663]
[1729586773316,0.166807,67201.0,67200.0,0.09645663]
[1729586773529,0.153807,67201.0,67200.0,0.09545663]
[1729586773961,0.162807,67201.0,67200.0,0.09645663]
[1729586774148,0.153807,67201.0,67200.0,0.09545663]
[1729586774392,0.155459,67201.0,67200.0,0.09545663]
[1729586774609,0.163459,67201.0,67200.0,0.09645663]
[1729586775298,0.163459,67201.0,67200.0,0.10610229]
[1729586775525,0.163459,67201.0,67200.0,0.09645663]
[1729586775750,0.163459,67201.0,67200.0,0.10470086]
[1729586776200,0.014652,67201.0,67200.0,0.10470086]
[1729586776413,0.006652,67201.0,67200.0,0.10370086]
[1729586776861,0.014652,67201.0,67200.0,0.10470086]
[1729586777338,0.006652,67201.0,67200.0,0.10370086]
[1729586777558,0.010652,67201.0,67200.0,0.10370086]
[1729586778214,0.159459,67201.0,67200.0,0.10370086]
[1729586778441,0.010652,67201.0,67200.0,0.10370086]
[1729586780934,0.37968319,67201.0,67200.0,0.10370086]
[1729586781157,0.37968319,67201.0,67200.0,0.09545663]
[1729586782757,0.238659,67201.0,67200.0,0.09545663]
[1729586783209,0.169459,67201.0,67200.0,0.09645663]
[1729586783470,0.020652,67201.0,67200.0,0.09645663]
[1729586783691,0.160459,67201.0,67200.0,0.10369025]
[1729586783914,0.170459,67201.0,67200.0,0.10469025]
[1729586784354,0.29748319,67201.0,67200.0,0.10369025]
[1729586784571,0.29748319,67201.0,67200.0,0.09545663]
[1729586785012,0.30548319,67201.0,67200.0,0.09645663]
[1729586785454,0.168459,67201.0,67200.0,0.09645663]
[1729586786095,0.160459,67201.0,67200.0,0.09545663]
[1729586786552,0.170459,67201.0,67200.0,0.09645663]
[1729586786773,0.160459,67201.0,67200.0,0.10451525]
[1729586786997,0.155459,67201.0,67200.0,0.09628163]
[1729586787230,0.164459,67201.0,67200.0,0.09728163]
[1729586787445,0.164459,67201.0,67200.0,0.10451525]
[1729586788139,0.169459,67201.0,67200.0,0.10451525]
[1729586788860,0.169459,67201.0,67200.0,0.09628163]
[1729586790477,0.177459,67201.0,67200.0,0.10551525]
[1729586790936,0.172459,67201.0,67200.0,0.10551525]
[1729586791426,0.177459,67201.0,67200.0,0.10551525]
[1729586791898,0.177459,67201.0,67200.0,0.25332425]
[1729586791899,0.006652,67201.0,67200.0,0.25332425]
[1729586792124,0.013652,67201.0,67200.0,0.10551525]
[1729586792573,0.013652,67201.0,67200.0,0.10451525]
[1729586792574,0.006652,67201.0,67200.0,0.10451525]
[1729586792795,0.004652,67201.0,67200.0,0.10351525]
[1729586793225,0.001652,67201.0,67200.0,0.10351525]
[1729586793440,0.008652,67201.0,67200.0,0.10451525]
[1729586793867,0.002652,67201.0,67200.0,0.10351525]
[1729586795490,0.002652,67201.0,67200.0,0.25232425]
[1729586795717,0.002652,67201.0,67200.0,0.79956393]
[1729586795941,0.002652,67201.0,67200.0,0.42512625]
[1729586796190,0.002652,67201.0,67200.0,0.2524744]
[1729586796716,0.001652,67201.0,67200.0,0.2524744]
[1729586796945,0.002652,67201.0,67200.0,0.2524744]
[1729586797182,0.004652,67201.0,67200.0,0.2524744]
[1729586797416,0.001652,67201.0,67200.0,0.2524744]
[1729586797655,0.001652,67201.0,67200.0,0.47117494]
[1729586797899,0.001652,67201.0,67200.0,0.32436594]
[1729586798157,0.001652,67201.0,67200.0,0.47317494]
[1729586798356,0.001652,67201.0,67200.0,0.65477494]
[1729586798804,0.001652,67201.0,67200.0,0.5858834]
[1729586799261,0.001652,67201.0,67200.0,0.5908834]
[1729586799487,0.001652,67201.0,67200.0,0.6138834]
[1729586800231,0.001652,67201.0,67200.0,0.6108834]
[1729586800460,0.002652,67201.0,67200.0,0.6128834]
[1729586800689,0.001652,67201.0,67200.0,0.76184255]
[1729586802096,0.001652,67201.0,67200.0,0.76284255]
[1729586802806,0.001652,67201.0,67200.0,1.00986674]
[1729586803051,0.00365,67204.0,67203.0,0.59072619]
[1729586803286,0.00365,67204.0,67203.0,0.89087719]
[1729586803512,0.00365,67204.0,67203.0,0.90899759]
[1729586803744,0.00365,67204.0,67203.0,0.91099759]
[1729586805181,0.00365,67204.0,67203.0,0.90899759]
[1729586805409,0.00365,67204.0,67203.0,0.90676489]
[1729586805639,0.00365,67204.0,67203.0,0.89676489]
[1729586805885,0.00365,67204.0,67203.0,0.48278155]
[1729586806110,0.00365,67204.0,67203.0,0.48778155]
[1729586806340,0.00465,67204.0,67203.0,0.49678155]
[1729586806802,0.00465,67204.0,67203.0,0.62480574]
[1729586806803,0.00365,67204.0,67203.0,0.62480574]
[1729586807020,0.00565,67204.0,67203.0,0.64380574]
[1729586807469,0.00365,67204.0,67203.0,0.74614684]
[1729586807694,0.00465,67204.0,67203.0,0.75214684]
[1729586808188,9e-05,67216.0,67215.0,0.148776]
[1729586808413,9e-05,67216.0,67215.0,0.77925805]
[1729586808636,9e-05,67216.0,67215.0,0.63925934]
[1729586808855,9e-05,67216.0,67215.0,0.6473094]
[1729586809835,0.00109,67216.0,67215.0,0.6603094]
[1729586810056,0.00209,67216.0,67215.0,0.79985214]
[1729586811429,0.00209,67216.0,67215.0,0.6733094]
[1729586812576,0.00209,67216.0,67215.0,0.50828521]
[1729586813243,0.00374,67216.0,67215.0,0.50828521]
[1729586813691,0.00174,67216.0,67215.0,0.48228521]
[1729586813940,0.00174,67216.0,67215.0,0.40418521]
[1729586814164,0.00274,67216.0,67215.0,0.41618521]
[1729586814619,0.00274,67216.0,67215.0,0.63310659]
[1729586815056,0.00274,67216.0,67215.0,0.64510659]
[1729586815284,0.00174,67216.0,67215.0,0.31778521]
[1729586815517,0.00174,67216.0,67215.0,0.30578521]
[1729586815962,0.00174,67216.0,67215.0,0.30778521]
[1729586816406,0.00174,67216.0,67215.0,0.30578521]
[1729586816630,0.00174,67216.0,67215.0,0.15700921]
[1729586817291,0.00474,67216.0,67215.0,0.15700921]
[1729586818010,0.00474,67216.0,67215.0,0.30578521]
[1729586819148,0.00474,67216.0,67215.0,0.3883852]
[1729586819802,0.00474,67216.0,67215.0,0.30578521]
[1729586820455,0.00474,67216.0,67215.0,0.15700921]
[1729586820669,0.00474,67216.0,67215.0,0.00805006]
[1729586820888,0.00474,67216.0,67215.0,0.29773515]
[1729586821108,0.00474,67216.0,67215.0,0.30071035]
[1729586821345,0.00474,67216.0,67215.0,0.30571182]
[1729586822026,0.00174,67216.0,67215.0,0.30571182]
[1729586822242,0.00174,67216.0,67215.0,0.52983601]
[1729586822480,0.00174,67216.0,67215.0,0.39781182]
[1729586822697,0.00174,67216.0,67215.0,0.38681182]
[1729586822912,0.00174,67216.0,67215.0,0.39081182]
[1729586823127,0.00174,67216.0,67215.0,0.53635359]
[1729586823574,0.00174,67216.0,67215.0,0.39581182]
[1729586824020,0.00174,67216.0,67215.0,0.31471182]
[1729586824940,0.00174,67216.0,67215.0,0.30971182]
[1729586825389,0.00174,67216.0,67215.0,0.31071182]
[1729586825600,0.00374,67216.0,67215.0,0.31071182]
[1729586826041,0.00374,67216.0,67215.0,0.41049832]
[1729586826268,0.00474,67216.0,67215.0,0.30571182]
[1729586832675,0.00474,67216.0,67215.0,0.15693582]
[1729586832925,0.00174,67216.0,67215.0,0.15693582]
[1729586833420,0.00874,67216.0,67215.0,0.15693582]
[1729586833642,0.00474,67216.0,67215.0,0.15693582]
[1729586834085,0.00474,67216.0,67215.0,0.30571182]
[1729586834579,0.00274,67216.0,67215.0,0.30571182]
[1729586834808,0.00274,67216.0,67215.0,0.30671182]
[1729586835829,0.00274,67216.0,67215.0,0.30653682]
[1729586836989,0.00174,67216.0,67215.0,0.30653682]
[1729586837910,0.00374,67216.0,67215.0,0.30653682]
[1729586839521,0.00374,67216.0,67215.0,0.00880167]
[1729586839522,0.233714,67216.0,67215.0,0.00880167]
[1729586839755,0.25257733,67216.0,67215.0,0.0108351]
[1729586840047,0.25257733,67216.0,67215.0,0.000825]
[1729586840048,0.36257733,67216.0,67215.0,0.000825]
[1729586840295,0.51153648,67216.0,67215.0,0.000825]
[1729586840553,0.73685897,67216.0,67215.0,0.000825]
[1729586840788,0.60193648,67216.0,67215.0,0.000825]
[1729586841054,0.59607315,67216.0,67215.0,0.003825]
[1729586841371,0.74695465,67216.0,67215.0,0.00190122]
[1729586841569,0.153798,67205.0,67204.0,0.22265268]
[1729586841836,0.16765531,67205.0,67204.0,0.22265268]
[1729586842073,0.16765531,67205.0,67204.0,0.23273506]
[1729586843026,0.16765531,67205.0,67204.0,0.01008238]
[1729586843267,0.17765531,67205.0,67204.0,0.01108238]
[1729586843562,0.17765531,67205.0,67204.0,0.001]
[1729586843785,0.26355531,67205.0,67204.0,0.002]
[1729586844268,0.27355531,67205.0,67204.0,0.002]
[1729586844517,0.27352249,67205.0,67204.0,0.002]
[1729586844743,0.259698,67205.0,67204.0,0.002]
[1729586844970,0.27352027,67205.0,67204.0,0.002]
[1729586845259,0.259698,67205.0,67204.0,0.002]
[1729586845502,0.27352086,67205.0,67204.0,0.002]
[1729586846675,0.7515042,67205.0,67204.0,0.002]
[1729586846899,0.84008166,67205.0,67204.0,0.002]
[1729586847130,0.86222603,67205.0,67204.0,0.002825]
[1729586847587,0.61448001,67205.0,67204.0,0.002825]
[1729586847869,0.7515042,67205.0,67204.0,0.002825]
[1729586848324,0.86222603,67205.0,67204.0,0.002825]
[1729586848543,0.84811893,67205.0,67204.0,0.002825]
[1729586848764,0.73768134,67205.0,67204.0,0.002825]
[1729586848988,0.75148033,67205.0,67204.0,0.002825]
[1729586849212,0.163805,67202.0,67200.0,0.09528163]
[1729586849434,0.163805,67202.0,67196.0,0.22265268]
[1729586849435,0.40084019,67197.0,67196.0,0.22265268]
[1729586849667,0.64849833,67197.0,67196.0,0.22265268]
[1729586849888,0.69264036,67197.0,67196.0,0.22265268]
[1729586850115,0.69264036,67197.0,67189.0,0.22265268]
[1729586850116,0.163831,67190.0,67189.0,0.22265268]
[1729586850385,0.87583752,67190.0,67189.0,0.22265268]
[1729586850607,0.87583752,67190.0,67181.0,0.22265268]
[1729586850608,0.153849,67182.0,67181.0,0.22265268]
[1729586850831,0.62819637,67182.0,67181.0,0.22265268]
[1729586851705,0.005,67174.0,67163.0,0.37154268]
[1729586851926,0.28589719,67171.0,67163.0,0.22265268]
[1729586852352,0.148882,67167.0,67163.0,0.22265268]
[1729586853020,0.148879,67169.0,67164.0,0.148888]
[1729586853238,0.148882,67167.0,67163.0,0.22265268]
[1729586853462,0.43477419,67171.0,67163.0,0.22265268]
[1729586853681,0.43477419,67171.0,67163.0,0.37154268]
[1729586853682,0.148882,67167.0,67163.0,0.37154268]
[1729586853895,0.002,67167.0,67163.0,0.37154268]
[1729586854113,0.002,67167.0,67160.0,0.0971]
[1729586854114,0.28790619,67167.0,67160.0,0.0971]
[1729586854619,0.28590619,67167.0,67160.0,0.0971]
[1729586854763,0.148882,67167.0,67166.0,0.001826]
[1729586854993,0.44077419,67171.0,67166.0,0.001826]
[1729586854994,0.006,67171.0,67166.0,0.001826]
[1729586855192,0.148879,67169.0,67166.0,0.001826]
[1729586855393,0.003,67167.0,67166.0,0.001826]
[1729586856044,0.003,67167.0,67166.0,0.000826]
[1729586856418,0.004,67167.0,67166.0,0.14971]
[1729586857126,0.004,67167.0,67166.0,0.29866915]
[1729586857715,0.004,67167.0,67166.0,0.15693732]
[1729586858150,0.004,67167.0,67166.0,0.30582132]
[1729586858811,0.004,67167.0,67166.0,0.15693732]
[1729586859874,0.004,67167.0,67166.0,0.30582132]
[1729586860766,0.004,67167.0,67166.0,0.48302132]
[1729586862389,0.148869,67173.0,67169.0,0.148878]
[1729586862637,0.29773,67175.0,67170.0,0.14895915]
[1729586862638,0.005,67175.0,67170.0,0.14895915]
[1729586862847,0.297719,67178.0,67170.0,0.15609886]
[1729586863066,0.148868,67174.0,67170.0,0.15609886]
[1729586863746,0.148869,67173.0,67170.0,0.15609886]
[1729586863962,0.297729,67175.0,67170.0,0.15609886]
[1729586864209,0.148868,67174.0,67170.0,0.15609886]
[1729586864463,0.3027,67182.0,67171.0,0.22265268]
[1729586864684,0.1,67183.0,67170.0,0.45384586]
[1729586864685,0.005,67180.0,67172.0,0.14895915]
[1729586864900,0.004,67175.0,67174.0,0.148866]
[1729586865117,0.004,67175.0,67174.0,0.14895915]
[1729586865332,0.004,67175.0,67174.0,0.29782615]
[1729586865586,0.157864,67175.0,67174.0,0.15609039]
[1729586865873,0.153864,67175.0,67174.0,0.00713124]
[1729586866119,0.30273,67175.0,67166.0,0.178026]
[1729586866385,0.148873,67171.0,67170.0,0.22265268]
[1729586866596,0.148873,67171.0,67170.0,0.37161183]
[1729586866812,0.148873,67171.0,67170.0,0.14895915]
[1729586867035,0.297738,67173.0,67166.0,0.178026]
[1729586867259,0.148876,67170.0,67167.0,0.14895915]
[1729586867686,0.297748,67171.0,67167.0,0.14895915]
[1729586867687,0.148879,67169.0,67167.0,0.14895915]
[1729586867891,0.297748,67171.0,67167.0,0.14895915]
[1729586868127,0.297738,67173.0,67167.0,0.14895915]
[1729586868128,0.148876,67170.0,67167.0,0.14895915]
[1729586868776,0.148876,67170.0,67167.0,0.14837758]
[1729586869191,0.002,67171.0,67167.0,0.14837758]
[1729586869192,0.003,67171.0,67167.0,0.14837758]
[1729586869396,0.148878,67169.0,67167.0,0.14837758]
[1729586869602,0.001,67170.0,67167.0,0.14837758]
[1729586869864,0.14888,67168.0,67167.0,0.14837758]
[1729586870124,0.447628,67170.0,67167.0,0.14837758]
[1729586870347,0.149876,67170.0,67167.0,0.14837758]
[1729586870558,0.001,67170.0,67167.0,0.14837758]
[1729586870765,0.149877,67170.0,67167.0,0.14837758]
[1729586870975,0.14995144,67170.0,67167.0,0.14837758]
[1729586871391,0.14888,67169.0,67167.0,0.14837758]
[1729586871593,0.14888,67169.0,67167.0,0.14920358]
[1729586871804,0.14895444,67168.0,67167.0,0.14920358]
[1729586872021,7.444e-05,67168.0,67167.0,0.15120358]
[1729586872425,7.444e-05,67168.0,67167.0,0.14920358]
[1729586872843,7.444e-05,67168.0,67167.0,0.15638078]
[1729586873047,0.00107444,67168.0,67167.0,0.15638078]
[1729586873259,0.00107444,67168.0,67167.0,0.0080032]
[1729586873496,0.14995444,67168.0,67167.0,0.0080032]
[1729586873704,0.14995444,67168.0,67167.0,0.000826]
[1729586876212,0.14995444,67168.0,67167.0,0.00800986]
[1729586877644,0.15495444,67168.0,67167.0,0.00800986]
[1729586877867,0.26495444,67168.0,67167.0,0.000826]
[1729586878713,0.26395444,67168.0,67167.0,0.000826]
[1729586879123,0.29095444,67168.0,67167.0,0.002826]
[1729586879332,0.27695444,67168.0,67167.0,0.001826]
[1729586879548,0.26395444,67168.0,67167.0,0.000826]
[1729586879795,0.27795444,67168.0,67167.0,0.001826]
[1729586880886,0.27295444,67168.0,67167.0,0.001826]
[1729586881136,0.28095444,67168.0,67167.0,0.002826]
[1729586881630,0.26795444,67168.0,67167.0,0.001826]
[1729586881882,0.25395444,67168.0,67167.0,0.000826]
[1729586882121,0.02707444,67168.0,67167.0,0.001826]
[1729586882379,0.02707444,67168.0,67167.0,0.150708]
[1729586882628,0.01407444,67168.0,67167.0,0.092726]
[1729586882874,0.02507444,67168.0,67167.0,0.09995269]
[1729586884538,0.02672644,67168.0,67167.0,0.09995269]
[1729586886435,0.17560644,67168.0,67167.0,0.09995269]
[1729586886894,0.02672644,67168.0,67167.0,0.09995269]
[1729586888805,0.17560644,67168.0,67167.0,0.09995269]
[1729586889048,0.17560644,67168.0,67167.0,0.00805269]
[1729586889049,0.31263063,67168.0,67167.0,0.00805269]
[1729586889306,0.31763063,67168.0,67167.0,0.000826]
[1729586889793,0.31745145,67168.0,67167.0,0.000826]
[1729586890977,0.32745145,67168.0,67167.0,0.000826]
[1729586891520,0.43807348,67168.0,67167.0,0.00040953]
[1729586891746,0.41597005,67168.0,67167.0,0.00040953]
[1729586891992,0.32745145,67168.0,67167.0,0.00040953]
[1729586892218,0.26894994,67168.0,67167.0,0.00040953]
[1729586892446,0.22468893,67168.0,67167.0,0.00040953]
[1729586893190,0.18042726,67168.0,67167.0,0.00040953]
[1729586893443,0.31745145,67168.0,67167.0,0.00040953]
[1729586893919,0.36174516,67168.0,67167.0,0.00040953]
[1729586894153,0.31745145,67168.0,67167.0,0.00040953]
[1729586894411,0.38388529,67168.0,67167.0,0.00040953]
[1729586894681,0.42745145,67168.0,67167.0,0.00040953]
[1729586899866,0.42745145,67168.0,67149.0,0.22347768]
[1729586899867,0.165904,67157.0,67149.0,0.22347768]
[1729586900091,0.344104,67157.0,67149.0,0.22347768]
[1729586900315,0.346104,67157.0,67149.0,0.22347768]
[1729586901473,0.59186315,67157.0,67149.0,0.22347768]
[1729586902402,0.60586315,67157.0,67149.0,0.22347768]
[1729586902629,0.59186315,67157.0,67149.0,0.22347768]
[1729586903072,0.60586315,67157.0,67149.0,0.22347768]
[1729586903290,0.61986315,67157.0,67156.0,0.001826]
[1729586903735,0.291904,67157.0,67156.0,0.001826]
[1729586903963,0.277904,67157.0,67156.0,0.000826]
[1729586904390,0.291904,67157.0,67156.0,0.001826]
[1729586904610,0.286904,67157.0,67156.0,0.001826]
[1729586904829,0.291904,67157.0,67156.0,0.001826]
[1729586906842,0.281904,67157.0,67156.0,0.001826]
[1729586907498,0.267904,67157.0,67156.0,0.000826]